[Event "Israel National League 2024"]
[Site "Israel"]
[Date "2024.03.08"]
[Round "11.23"]
[White "Soffer, Ram"]
[Black "Veinberg, Nimrod"]
[Result "1-0"]
[ECO "E14"]
[WhiteElo "2431"]
[BlackElo "2411"]
[Annotator "RC"]
[PlyCount "83"]
[EventDate "2024.01.07"]
[EventType "team-tourn"]
[EventCountry "ISR"]
[SourceTitle "playchess.com"]
[Source "ChessBase"]
[SourceQuality "1"]
[TimeControl "40/5400+30:1800+30"]

1. Nf3 {[%emt 0:14:43]} d5 {[%emt 0:00:07]} 2. e3 {[%emt 0:00:18]} Nf6 {[%emt 0:00:40]} 3. c4 {[%emt 0:00:29]} e6 {[%emt 0:00:54]} 4. b3 {[%emt 0:01:33]} b6 {[%emt 0:01:57]} 5. Bb2 {[%emt 0:02:10]} Bb7 {[%emt 0:00:07]} 6. Nc3 {[%emt 0:02:02]} Nbd7 {[%emt 0:00:31]} 7. d4 {[%emt 0:02:27]} Be7 {[%emt 0:01:45]} 8. Bd3 {[%emt 0:00:22]} O-O {[%emt 0:00:34]} 9. O-O {[%emt 0:00:11]} c5 {[%emt 0:01:42]} 10. cxd5 {[%emt 0:00:45]} Nxd5 {[%emt 0:05:56]} 11. Nxd5 {[%emt 0:01:49]} Bxd5 {[%emt 0:00:27]} 12. e4 {[%emt 0:01:32]} Bb7 {[%emt 0:00:18]} 13. Qe2 {[%emt 0:00:56]} cxd4 {[%emt 0:00:33]} 14. Nxd4 {[%emt 0:01:39]} Nc5 {[%emt 0:02:56]} 15. Bc2 {[%emt 0:01:08]} Ba6 {[%emt 0:16:34]} 16. Nb5 {[%emt 0:11:28]} Bxb5 {[%emt 0:10:48]} 17. Qxb5 {[%emt 0:00:45]} Qd2 {[%emt 0:00:02]} 18. Qc4 {[%emt 0:06:38]} Rac8 {[%emt 0:11:23]} 19. Rad1 {[%emt 0:00:55]} Nxe4 {[%emt 0:06:27]} 20. Rxd2 {[%emt 0:02:37]} Rxc4 {[%emt 0:00:41]} 21. Re2 {[%emt 0:00:10]} Nc3 {[%emt 0:00:11]} 22. Re3 {[%emt 0:00:06]} Rc7 {[%emt 0:01:03]} 23. Rxc3 {[%emt 0:00:12]} Rxc3 {[%emt 0:00:05]} 24. Bxc3 {[%emt 0:00:03]} Rc8 {[%emt 0:00:01]} 25. Rc1 {[%emt 0:00:32]} Rxc3 {[%emt 0:08:18]} 26. Bxh7+ {[%emt 0:00:10]} Kxh7 {[%emt 0:00:03]} 27. Rxc3 {[%emt 0:00:04]} Bc5 {[%emt 0:00:06]} 28. g3 {[%emt 0:04:04]} Kg6 {[%emt 0:00:06]} 29. Kg2 {[%emt 0:00:09]} f5 {[%emt 0:00:05]} 30. f4 {[%emt 0:01:05]} Kf6 {[%emt 0:00:08]} 31. Rd3 {[%emt 0:00:26]} a5 {[%emt 0:00:29]} 32. h4 {[%emt 0:02:35]} e5 {[%emt 0:00:07]} 33. fxe5+ {[%emt 0:00:04]} Kxe5 {[%emt 0:00:02]} 34. Rd7 {[%emt 0:00:49]} Kf6 {[%emt 0:00:27]} 35. Rc7 {[%emt 0:00:21]} Kg6 {[%emt 0:00:42]} 36. Kf3 {[%emt 0:00:20]} Kh6 {[%emt 0:00:10]} 37. g4 {[%emt 0:03:54]} fxg4+ {[%emt 0:01:02]} 38. Kxg4 {[%emt 0:03:20]} g6 {[%emt 0:00:41]} 39. a4 {[%emt 0:01:45]} Bd4 {[%emt 0:02:43]} 40. Re7 {[%emt 0:00:17]} Bf2 {[%emt 0:00:27]} 41. Re6 {[%emt 0:30:25]} Kg7 {[%emt 0:30:07]} 42. Kg5 {[%emt 0:00:12]} 1-0

[Event "Israel National League 2024"]
[Site "Israel"]
[Date "2024.03.08"]
[Round "11.24"]
[White "Kaspi, Alexander"]
[Black "Ganor, Dotan"]
[Result "1/2-1/2"]
[ECO "A36"]
[WhiteElo "2375"]
[BlackElo "2229"]
[Annotator "RC"]
[PlyCount "159"]
[EventDate "2024.01.07"]
[EventType "team-tourn"]
[EventCountry "ISR"]
[SourceTitle "playchess.com"]
[Source "ChessBase"]
[SourceQuality "1"]
[TimeControl "40/5400+30:1800+30"]

1. c4 {[%emt 0:10:09]} Nf6 {[%emt 0:03:51]} 2. Nc3 {[%emt 0:01:07]} c5 {[%emt 0:01:51]} 3. e4 {[%emt 0:00:10]} Nc6 {[%emt 0:03:25]} 4. g3 {[%emt 0:00:49]} g6 {[%emt 0:02:29]} 5. Bg2 {[%emt 0:00:28]} Bg7 {[%emt 0:00:06]} 6. Nge2 {[%emt 0:00:20]} O-O {[%emt 0:00:56]} 7. d3 {[%emt 0:02:22]} d6 {[%emt 0:00:47]} 8. Rb1 {[%emt 0:01:12]} Bd7 {[%emt 0:06:03]} 9. a3 {[%emt 0:00:53]} a5 {[%emt 0:02:37]} 10. O-O {[%emt 0:00:26]} h6 {[%emt 0:07:42]} 11. h3 {[%emt 0:01:47]} Ne8 {[%emt 0:12:04]} 12. Be3 {[%emt 0:06:25]} Nd4 {[%emt 0:06:20]} 13. b4 {[%emt 0:01:17]} axb4 {[%emt 0:00:36]} 14. axb4 {[%emt 0:00:15]} b6 {[%emt 0:08:25]} 15. b5 {[%emt 0:18:37]} Nc7 {[%emt 0:05:49]} 16. f4 {[%emt 0:02:41]} Ra3 {[%emt 0:01:31]} 17. Bc1 {[%emt 0:08:50]} Ra5 {[%emt 0:00:58]} 18. Kh2 {[%emt 0:03:01]} Kh7 {[%emt 0:01:02]} 19. Nxd4 {[%emt 0:03:13]} cxd4 {[%emt 0:03:13]} 20. Ne2 {[%emt 0:00:19]} e5 {[%emt 0:02:31]} 21. Bd2 {[%emt 0:01:06]} Ra2 {[%emt 0:04:06]} 22. Ra1 {[%emt 0:03:43]} Rxa1 {[%emt 0:02:58]} 23. Qxa1 {[%emt 0:00:25]} Ne6 {[%emt 0:00:05]} 24. Bb4 {[%emt 0:05:29]} Nc5 {[%emt 0:00:10]} 25. Bxc5 {[%emt 0:00:04]} dxc5 {[%emt 0:03:19]} 26. Qa7 {[%emt 0:00:09]} Be6 {[%emt 0:03:20]} 27. f5 {[%emt 0:03:26]} Bd7 {[%emt 0:02:27]} 28. fxg6+ {[%emt 0:02:15]} fxg6 {[%emt 0:00:15]} 29. Rxf8 {[%emt 0:00:06]} Bxf8 {[%emt 0:00:02]} 30. h4 {[%emt 0:00:08]} Kg8 {[%emt 0:01:30]} 31. Ng1 {[%emt 0:01:51]} Bd6 {[%emt 0:04:13]} 32. Bh3 {[%emt 0:01:36]} Bxh3 {[%emt 0:01:14]} 33. Nxh3 {[%emt 0:00:18]} Be7 {[%emt 0:02:14]} 34. Qb7 {[%emt 0:00:31]} Kf8 {[%emt 0:01:35]} 35. Kg2 {[%emt 0:02:06]} Qd6 {[%emt 0:00:22]} 36. Nf2 {[%emt 0:00:21]} h5 {[%emt 0:00:35]} 37. Nh3 {[%emt 0:00:54]} Qe6 {[%emt 0:02:11]} 38. Qd5 {[%emt 0:01:28]} Kf7 {[%emt 0:01:14]} 39. Ng1 {[%emt 0:00:44]} Bf6 {[%emt 0:01:08]} 40. Nf3 {[%emt 0:00:11]} Ke7 {[%emt 0:01:41]} 41. Qb7+ {[%emt 0:32:54]} Kf8 {[%emt 0:30:26]} 42. Qa8+ {[%emt 0:09:53]} Kf7 {[%emt 0:00:29]} 43. Qb8 {[%emt 0:00:42]} Kg7 {[%emt 0:02:28]} 44. Kf2 {[%emt 0:02:56]} Kf7 {[%emt 0:00:17]} 45. Qb7+ {[%emt 0:02:01]} Kf8 {[%emt 0:00:36]} 46. Qd5 {[%emt 0:01:40]} Ke7 {[%emt 0:00:28]} 47. Kg2 {[%emt 0:01:36]} Kf7 {[%emt 0:00:13]} 48. Kf2 {[%emt 0:00:00]} Ke7 {[%emt 0:00:00]} 49. Ne1 {[%emt 0:00:00]} Bg7 {[%emt 0:00:00]} 50. Qb7+ {[%emt 0:00:00]} Kf8 {[%emt 0:00:00]} 51. Kg2 {[%emt 0:00:00]} Bf6 {[%emt 0:00:00]} 52. Nf3 {[%emt 0:00:00]} Kg8 {[%emt 0:00:00]} 53. Qd5 {[%emt 0:00:00]} Kf7 {[%emt 0:00:00]} 54. Nd2 {[%emt 0:00:00]} Ke7 {[%emt 0:00:00]} 55. Nf1 {[%emt 0:00:00]} Kf7 {[%emt 0:00:00]} 56. Qxe6+ {[%emt 0:00:00]} Kxe6 {[%emt 0:00:00]} 57. Kh3 {[%emt 0:00:00]} Kf7 {[%emt 0:00:00]} 58. g4 {[%emt 0:00:00]} Kg7 {[%emt 0:00:00]} 59. Ng3 {[%emt 0:00:00]} hxg4+ {[%emt 0:00:00]} 60. Kxg4 {[%emt 0:00:00]} Kh6 {[%emt 0:00:00]} 61. Ne2 {[%emt 0:00:00]} Bd8 {[%emt 0:00:00]} 62. Ng1 {[%emt 0:00:00]} Be7 {[%emt 0:00:00]} 63. Nf3 {[%emt 0:00:00]} Bf6 {[%emt 0:00:00]} 64. h5 {[%emt 0:00:00]} Kg7 {[%emt 0:00:00]} 65. Ng5 {[%emt 0:00:00]} Kh6 {[%emt 0:00:10]} 66. Nf7+ {[%emt 0:00:00]} Kg7 {[%emt 0:00:07]} 67. Nd6 {[%emt 0:00:00]} Kh6 {[%emt 0:01:06]} 68. hxg6 {[%emt 0:00:00]} Kxg6 {[%emt 0:00:02]} 69. Nc8 {[%emt 0:00:02]} Bd8 {[%emt 0:00:04]} 70. Na7 {[%emt 0:00:06]} Be7 {[%emt 0:03:10]} 71. Nc6 {[%emt 0:01:00]} Bd6 {[%emt 0:00:26]} 72. Na7 {[%emt 0:02:18]} Be7 {[%emt 0:00:34]} 73. Nc8 {[%emt 0:00:07]} Bd8 {[%emt 0:00:05]} 74. Nd6 {[%emt 0:00:06]} Bc7 {[%emt 0:00:37]} 75. Nf5 {[%emt 0:00:46]} Bd8 {[%emt 0:00:05]} 76. Ng3 {[%emt 0:01:12]} Be7 {[%emt 0:00:23]} 77. Ne2 {[%emt 0:00:31]} Bd8 {[%emt 0:00:19]} 78. Ng1 {[%emt 0:00:17]} Be7 {[%emt 0:00:15]} 79. Nf3 {[%emt 0:00:07]} Bf6 {[%emt 0:00:01]} 80. Nh4+ {[%emt 0:01:19]} 1/2-1/2

[Event "Israel National League 2024"]
[Site "Israel"]
[Date "2024.03.08"]
[Round "11.25"]
[White "Boruchovsky, Avital"]
[Black "Emanuel, Yahav"]
[Result "1-0"]
[ECO "C55"]
[WhiteElo "2528"]
[BlackElo "2333"]
[Annotator "TA"]
[PlyCount "55"]
[EventDate "2024.01.07"]
[EventType "team-tourn"]
[EventCountry "ISR"]
[SourceTitle "playchess.com"]
[Source "ChessBase"]
[SourceQuality "1"]
[TimeControl "40/5400+30:1800+30"]

{[%evp 11,55,13,22,12,22,0,7,6,10,0,22,35,20,0,10,0,218,221,218,219,214,185,198,179,355,357,360,362,354,303,472,486,487,489,442,486,488,442,483,493,488,482,720,708,689,663]} 1. e4 {[%emt 0:04:31]} e5 {[%emt 0:00:10]} 2. Nf3 {[%emt 0:00:07]} Nc6 {[%emt 0:00:05]} 3. Bc4 {[%emt 0:00:10]} Nf6 {[%emt 0:00:56]} 4. d3 {[%emt 0:00:09]} Be7 {[%emt 0:00:13]} 5. O-O {[%emt 0:00:12]} O-O {[%emt 0:00:04]} 6. Nc3 {[%emt 0:00:12]} d6 {[%emt 0:01:03]} 7. a4 {[%emt 0:00:20]} Be6 {[%emt 0:06:16]} 8. Nd5 {[%emt 0:01:47]} Bxd5 {[%emt 0:03:31]} 9. exd5 {[%emt 0:00:09] The position is equal.} Nb4 {[%emt 0:02:02][%cal Bc6b4,Bb4d5,Bd5b6,Bb6c8][%mdl 32]} 10. d4 {[%emt 0:01:10]} exd4 {[%emt 0:15:13]} 11. Nxd4 {[%emt 0:03:14] And now Nf5 would win.} Nbxd5 {[%emt 0:01:13]} 12. Nf5 {[%emt 0:11:57]} Nb6 {[%emt 0:05:10]} 13. Bb3 {[%emt 0:00:07]} Nfd7 $2 {[%emt 0:15:31] Black is on the road to losing.} (13... Re8 $11) 14. a5 $18 {[%emt 0:05:49]} Nc8 {[%emt 0:02:20]} 15. Qg4 {[%emt 0:08:51][%csl Gf5][%cal Rg4g7] [#] Black is weak on the light squares} g6 {[%emt 0:00:48]} 16. a6 $36 {[%emt 0:00:08][%mdl 2048] White is in control.} Rb8 {[%emt 0:09:04]} 17. axb7 {[%emt 0:03:47]} Rxb7 $2 {[%emt 0:00:02]} (17... Ncb6 18. Qg3 (18. Rxa7 Bf6 $18) 18... Bf6 19. Nh6+ (19. Rxa7 Ne5 $18) 19... Kg7) 18. Nh6+ {[%emt 0:00:15]} Kg7 {[%emt 0:00:08] [#]} 19. Nxf7 {[%emt 0:00:54]} Rxf7 {[%emt 0:00:26]} 20. Bxf7 {[%emt 0:00:12] This pair of bishops is nice.} d5 {[%emt 0:00:25]} (20... c6 $142 21. Be6 Bf6) 21. Bxd5 {[%emt 0:56:59] White is clearly winning.} Nf6 {[%emt 0:01:39]} 22. Bh6+ {[%emt 0:00:00]} Kh8 {[%emt 0:01:20]} 23. Qe6 {[%emt 0:00:00]} Nxd5 {[%emt 0:00:27]} 24. Rad1 {[%emt 0:00:00][%cal Ba1d1,Bd1d5,Bd5d7][%mdl 32]} Qg8 {[%emt 0:06:29]} 25. Qxd5 {[%emt 0:00:00]} Qxd5 {[%emt 0:00:08]} 26. Rxd5 {[%emt 0:00:00]} Rxb2 {[%emt 0:00:11]} (26... c6 $142) 27. Re1 {[%emt 0:00:00][%cal Od5d8] Threatening mate with Rd8+!} Kg8 {[%emt 0:00:09]} 28. Rd7 {[%emt 0:00:00][%csl LRc7,LRe7] Weighted Error Value: White=0.10 (very precise) /Black=0.50.  Loses game:     	---       	Black=1      Mistake:       	---       	Black=3      OK:         	White=9     	Black=9      Best:        	White=2     	Black=2} 1-0

[Event "Israel National League 2024"]
[Site "Israel"]
[Date "2024.03.08"]
[Round "11.26"]
[White "Tifferet, Shakked"]
[Black "Gorshtein, Ido"]
[Result "1/2-1/2"]
[ECO "E11"]
[WhiteElo "2334"]
[BlackElo "2523"]
[Annotator "TA"]
[PlyCount "50"]
[EventDate "2024.01.07"]
[EventType "team-tourn"]
[EventCountry "ISR"]
[SourceTitle "playchess.com"]
[Source "ChessBase"]
[SourceQuality "1"]
[TimeControl "40/5400+30:1800+30"]

{[%evp 13,50,1,-2,-7,16,22,13,10,20,-6,2,0,8,0,10,13,9,6,22,15,30,20,52,41,37,46,54,42,60,28,72,50,60,32,53,27,32,39,45]} 1. d4 {[%emt 0:00:07]} Nf6 {[%emt 0:06:36]} 2. c4 {[%emt 0:01:47]} e6 {[%emt 0:00:08]} 3. Nf3 {[%emt 0:00:07]} d5 {[%emt 0:00:48]} 4. g3 {[%emt 0:00:15]} Bb4+ {[%emt 0:00:11]} 5. Bd2 {[%emt 0:00:23]} Be7 {[%emt 0:00:16]} 6. Bg2 {[%emt 0:00:16]} O-O {[%emt 0:00:10]} 7. O-O {[%emt 0:00:31]} Nbd7 {[%emt 0:00:03]} 8. Bc3 {[%emt 0:02:50]} Re8 {[%emt 0:03:38]} 9. Nbd2 {[%emt 0:05:33]} b6 {[%emt 0:01:14]} 10. b4 {[%emt 0:15:35] Die Stellung ist ausgeglichen.} Bb7 {[%emt 0:04:11]} 11. c5 {[%emt 0:07:43]} a5 {[%emt 0:03:02]} 12. a3 {[%emt 0:01:28]} Ne4 {[%emt 0:09:43]} 13. Qc2 {[%emt 0:05:12]} f5 {[%emt 0:02:01]} 14. Rfb1 {[%emt 0:01:43]} Bf6 {[%emt 0:10:04][%cal Rb6c5]} 15. e3 {[%emt 0:14:04]} axb4 {[%emt 0:07:53]} 16. axb4 {[%emt 0:00:21]} Rxa1 {[%emt 0:02:12]} 17. Bxa1 {[%emt 0:06:55] [#] Zielt auf c6 ab.} c6 {[%emt 0:00:43]} 18. Bf1 {[%emt 0:05:29]} Qc7 {[%emt 0:03:12]} 19. cxb6 {[%emt 0:02:21]} Qxb6 {[%emt 0:01:24]} 20. Nb3 {[%emt 0:00:49]} Ra8 {[%emt 0:02:16]} 21. Nfd2 {[%emt 0:02:16]} Bc8 {[%emt 0:06:21]} 22. Nxe4 {[%emt 0:06:25]} fxe4 {[%emt 0:00:15]} 23. Bh3 {[%emt 0:00:13]} Nf8 {[%emt 0:01:40][%cal Oc8a6]} 24. Na5 {[%emt 0:05:48]} Bd7 {[%emt 0:01:10]} 25. Bc3 {[%emt 0:00:31]} Be7 {[%emt 0:01:17] Gewichteter Fehlerwert: Weiß=0.07 (makellos) /Schwarz=0.12 (sehr präzise) .  Ungenau:       	Weiß=4     	Schwarz=2     OK:         	Weiß=10    	Schwarz=5} 1/2-1/2

[Event "Israel National League 2024"]
[Site "Israel"]
[Date "2024.03.08"]
[Round "11.27"]
[White "Rozen, Eytan"]
[Black "Lev, Ronen"]
[Result "1-0"]
[ECO "D20"]
[WhiteElo "2462"]
[BlackElo "2341"]
[Annotator "TA"]
[PlyCount "71"]
[EventDate "2024.01.07"]
[EventType "team-tourn"]
[EventCountry "ISR"]
[SourceTitle "playchess.com"]
[Source "ChessBase"]
[SourceQuality "1"]
[TimeControl "40/5400+30:1800+30"]

{[%evp 12,71,16,30,17,33,46,55,41,41,94,87,85,66,74,69,93,88,114,131,115,118,116,117,145,145,134,151,182,172,321,322,309,332,343,315,421,420,421,435,415,427,489,472,491,500,508,493,477,475,543,534,537,512,687,682,699,690,666,660,640,645]} 1. d4 {[%emt 0:04:14]} d5 {[%emt 0:00:12]} 2. c4 {[%emt 0:01:27]} dxc4 {[%emt 0:00:02]} 3. e4 {[%emt 0:01:12]} c5 {[%emt 0:04:34]} 4. d5 {[%emt 0:01:28]} e6 {[%emt 0:00:01]} 5. Bxc4 {[%emt 0:02:48]} Nf6 {[%emt 0:00:05]} 6. Nc3 {[%emt 0:00:42]} exd5 {[%emt 0:00:05]} 7. exd5 {[%emt 0:00:07]} Bd6 {[%emt 0:00:09]} 8. Qe2+ {[%emt 0:00:29]} Be7 {[%emt 0:01:28]} 9. Nf3 {[%emt 0:02:08]} O-O {[%emt 0:00:30] Weiß steht etwas besser.} 10. O-O {[%emt 0:00:08] Droht stark Bg5.} a6 {[%emt 0:01:43]} ({Besser ist} 10... Bg4 $14) 11. Re1 $16 {[%emt 0:08:28]} Bd6 {[%emt 0:00:23]} 12. Bg5 {[%emt 0:00:12] Zielt auf Ne4 ab.} h6 {[%emt 0:00:31]} 13. Bxf6 {[%emt 0:01:36]} Qxf6 {[%emt 0:00:23]} 14. Ne4 $36 {[%emt 0:00:05][%mdl 2048] Läuft bei Weiss.} Qd8 {[%emt 0:00:34]} 15. a4 {[%emt 0:03:24]} Bg4 {[%emt 0:04:16]} 16. Nxd6 {[%emt 0:01:08]} Qxd6 {[%emt 0:04:26]} 17. Qe7 {[%emt 0:00:14] Pariert Nd7.} Qxe7 {[%emt 0:01:19]} 18. Rxe7 {[%emt 0:00:02]} Nd7 {[%emt 0:03:36][%cal Ob7b5,Bb8d7,Bd7b6,Bb6c4][%mdl 32] [#]} 19. h3 $1 {[%emt 0:01:26] Weiß steht aktiver.} Nb6 {[%emt 0:07:05] Droht ...Bxf3 und aus.} 20. Ne5 {[%emt 0:01:29][%cal Bf3e5,Be5c4,Bc4d6][%mdl 32]} (20. hxg4 Nxc4 21. Rc1 (21. Rxb7 Rfd8 $16) 21... Nxb2 $11) 20... Bc8 {[%emt 0:11:15]} (20... Bf5 $142 21. a5 (21. Rxb7 Nxc4 22. Nxc4 Rad8 $18) 21... Nxc4 22. Nxc4 Bd3) 21. a5 $18 {[%emt 0:05:14]} Nxc4 {[%emt 0:00:05]} 22. Nxc4 {[%emt 0:00:04]} Rb8 {[%emt 0:00:19]} 23. Rae1 {[%emt 0:01:12]} Bf5 {[%emt 0:03:46][%cal Bc8f5,Bf5d3,Bd3b5][%mdl 32]} 24. Nd6 {[%emt 0:02:33][%csl LRb7,LRf5]} Bd3 {[%emt 0:06:04]} 25. Nxb7 {[%emt 0:00:16]} Bb5 {[%emt 0:02:25]} 26. d6 {[%emt 0:02:25]} c4 {[%emt 0:01:57] Weiß steht klar auf Gewinn.} 27. Rc7 {[%emt 0:01:09] Pariert Bc6.} Rfe8 {[%emt 0:06:12]} 28. Rxe8+ {[%emt 0:02:18]} Rxe8 {[%emt 0:00:46]} 29. d7 {[%emt 0:00:15]} Bxd7 {[%emt 0:00:19]} 30. Rxd7 {[%emt 0:00:03][%mdl 4096] Endspiel. KRN-KR} Re1+ {[%emt 0:00:06]} 31. Kh2 {[%emt 0:00:02]} Re2 {[%emt 0:00:06]} 32. Nd6 {[%emt 0:00:38][%csl LRc4,LRf7]} Rd2 {[%emt 0:00:50]} 33. Rd8+ {[%emt 0:00:05]} Kh7 {[%emt 0:00:06]} 34. Nxf7 {[%emt 0:00:06]} Rxb2 {[%emt 0:00:59]} 35. Rh8+ {[%emt 0:00:20]} Kg6 {[%emt 0:00:03]} 36. Ne5+ {[%emt 0:00:06] Gewichteter Fehlerwert: Weiß=0.01 (makellos) /Schwarz=0.32.  Fehler:       	---       	Schwarz=2     Ungenau:       	---       	Schwarz=2     OK:         	Weiß=16    	Schwarz=8     Bester:       	Weiß=2     	---        Stark:        	Weiß=1     	---} 1-0

[Event "Israel National League 2024"]
[Site "Israel"]
[Date "2024.03.08"]
[Round "11.28"]
[White "Ben-Menachem, Itzhak"]
[Black "Erenberg, Ariel"]
[Result "0-1"]
[ECO "E04"]
[WhiteElo "2266"]
[BlackElo "2496"]
[Annotator "TA"]
[PlyCount "89"]
[EventDate "2024.01.07"]
[EventType "team-tourn"]
[EventCountry "ISR"]
[SourceTitle "playchess.com"]
[Source "ChessBase"]
[SourceQuality "1"]
[TimeControl "40/5400+30:1800+30"]

{[%evp 14,89,8,0,5,0,14,14,0,12,-9,0,22,-124,-99,-112,-20,-20,-21,-18,-42,-53,-41,-75,-46,-44,-39,-87,-69,-115,-109,-94,-38,-49,-33,-39,-37,-118,-114,-151,-151,-167,-95,-83,-100,-170,-77,-112,-96,-93,-92,-81,-76,-67,-79,-672,-665,-690,-677,-692,-725,-685,-700,-712,-705,-688,-637,-639,-683,-676,-664,-665,-660,-661,-593,-1067,-1053,-5709]} 1. d4 {[%emt 0:00:01]} Nf6 {[%emt 0:03:31]} 2. c4 {[%emt 0:00:34]} e6 {[%emt 0:00:13]} 3. g3 {[%emt 0:00:07]} d5 {[%emt 0:01:21]} 4. Bg2 {[%emt 0:00:08]} Bb4+ {[%emt 0:00:10]} 5. Nd2 {[%emt 0:00:19]} O-O {[%emt 0:00:46]} 6. Ngf3 {[%emt 0:00:07]} dxc4 {[%emt 0:06:28]} 7. Qc2 {[%emt 0:00:47]} a5 {[%emt 0:03:35] E04: Open Catalan: 5 Nf3.} 8. a3 {[%emt 0:04:07]} Bxd2+ {[%emt 0:02:16]} 9. Bxd2 {[%emt 0:00:58]} b5 {[%emt 0:01:08]} 10. a4 {[%emt 0:00:57]} c6 {[%emt 0:01:11]} 11. e4 {[%emt 0:01:20]} h6 {[%emt 0:13:09]} 12. g4 {[%emt 0:06:12]} Nh7 {[%emt 0:21:56]} (12... Nxg4 13. e5 $16) 13. Rg1 $146 {[%emt 0:24:34]} (13. h4 $11 {keeps the balance.}) ({Predecessor:} 13. O-O Nd7 14. Be3 b4 15. h4 Qe7 16. g5 hxg5 17. hxg5 Ba6 18. Rfe1 c5 19. d5 {½-½ Targonski,S (2141)-Cvak,R (2379) W-ch WS/M/885 email 2023}) 13... Bb7 {[%emt 0:14:24]} 14. h4 {[%emt 0:07:19]} Nd7 {[%emt 0:05:26]} (14... Na6 $1 $17 15. axb5 cxb5 16. Rxa5 c3 17. Bxc3 (17. Rxb5 $2 cxd2+ 18. Kxd2 Qd7 $19) 17... b4) 15. g5 {[%emt 0:02:01]} h5 {[%emt 0:00:15]} 16. g6 {[%emt 0:07:13]} fxg6 {[%emt 0:01:06]} 17. e5 {[%emt 0:01:31]} Rf5 {[%emt 0:05:07]} (17... c5 {is interesting.} 18. Qxg6 Rf7 19. Qxh5 Qb6) 18. Ng5 {[%emt 0:12:13]} Nxg5 {[%emt 0:01:11]} 19. Bxg5 {[%emt 0:00:29]} Qb6 {[%emt 0:00:44]} 20. Be3 $1 {[%emt 0:09:37]} c5 {[%emt 0:00:45]} 21. O-O-O {[%emt 0:03:06]} (21. dxc5 $15 {is superior.} Qc7 22. axb5 Nxc5 23. Bxb7 (23. Qxc4 Rxe5 24. Ke2 Rf8 $17) 23... Nd3+ 24. Qxd3 cxd3 25. Bxa8 Qxe5 (25... Qc2 26. Kf1 $11) 26. O-O-O (26. Rxg6 $2 Qxb2 27. Kf1 Qxa1+ $19) (26. Rxa5 Kh7 $19) 26... Qc7+ (26... Qxb5 27. Kb1 $11) 27. Kb1 (27. Bc6 $2 Rxb5 28. Rxd3 Qxc6+ $19) 27... Qc2+ (27... Rxb5 28. Rd2 $11) 28. Ka1) 21... Bxg2 $17 {[%emt 0:05:13]} 22. Rxg2 {[%emt 0:00:02]} Nf8 {[%emt 0:00:23]} ({Black should try} 22... bxa4 $17 {[%cal Oa4a3] aiming for ...a3!} 23. Rxg6 Rf7) 23. dxc5 {[%emt 0:00:51]} Qb7 {[%emt 0:01:46]} 24. f4 {[%emt 0:00:35]} bxa4 {[%emt 0:00:38]} 25. Rd6 {[%emt 0:02:36]} (25. Rf2 $15) 25... Rc8 $17 {[%emt 0:03:07]} 26. Rg1 {[%emt 0:05:36]} Qf3 {[%emt 0:01:08]} 27. Qc3 {[%emt 0:00:52]} Rxf4 {[%emt 0:02:32]} (27... g5 $19 28. fxg5 a3 29. Qxa3 Rb8 (29... Rxe5 30. Bd4 $11)) 28. Bxf4 $17 {[%emt 0:00:47]} Qxf4+ {[%emt 0:00:04]} (28... Qxc3+ $2 29. bxc3 Rxc5 30. Kb2 $18) 29. Qd2 {[%emt 0:03:38]} (29. Kb1 $17 {was necessary.}) 29... Qxe5 {[%emt 0:00:21]} (29... Qxd2+ 30. Kxd2 Rxc5 31. Re1 $11) (29... Qxh4 $19 {and Black stays clearly on top. ...a3 would now be deadly.} 30. c6 a3 31. bxa3 Qh3) 30. Rg5 $17 {[%emt 0:01:58]} Qf6 {[%emt 0:00:15]} 31. Qd4 {[%emt 0:00:56]} Qf1+ $1 {[%emt 0:00:28]} 32. Kc2 {[%emt 0:00:14]} Qe2+ {[%emt 0:00:43]} (32... a3 33. bxa3 Qe2+ 34. Kc1 $17) 33. Kc1 {[%emt 0:00:40]} Rc7 {[%emt 0:03:01]} 34. Rd8 $2 {[%emt 0:02:33][%mdl 8192]} (34. Qe5 $17 Qf3 35. Rg3 (35. Rd8 $2 a3 $19) 35... Qh1+ 36. Rd1) 34... Rf7 $1 $19 {[%emt 0:00:39]} 35. Rg1 {[%emt 0:00:38]} a3 {[%emt 0:01:05]} 36. bxa3 {[%emt 0:00:23]} Rf2 {[%emt 0:00:36]} 37. Qc3 {[%emt 0:00:15]} Rf3 {[%emt 0:00:54]} 38. Qd2 {[%emt 0:00:32] [#]} Qe5 $1 {[%emt 0:01:12]} 39. Qd4 {[%emt 0:00:38]} Rc3+ {[%emt 0:00:26]} 40. Kb2 {[%emt 0:01:27]} Rb3+ {[%emt 0:00:05]} 41. Ka1 {[%emt 0:04:32]} Rxa3+ {[%emt 0:08:11]} 42. Kb2 {[%emt 0:02:01]} Rb3+ {[%emt 0:00:06]} 43. Ka1 {[%emt 0:00:07] [#]} Qf5 $1 {[%emt 0:01:10]} ({Wrong is} 43... Qxd4+ $2 44. Rxd4 c3 45. c6 $18) 44. Qxc4 {[%emt 0:09:15]} Rb4 {[%emt 0:04:41]} 45. Qc1 {[%emt 0:02:58]} 0-1